fUSD/lending_fUSD_20260319
["ID","MTS","AMOUNT","RATE_DAILY","PERIOD"]
[408606856,1773936652832,-1855.94,0.00014999,2]
[408606857,1773936652842,-1855.94,0.00014999,2]
[408606858,1773936652851,-1855.94,0.00014999,2]
[408606859,1773936652861,-1855.94,0.00014999,2]
[408606860,1773936652870,-1856.05337267,0.00014999,2]
[408606861,1773936652879,-500.0,0.00014999,2]
[408606862,1773936652889,-500.0,0.00014999,2]
[408606863,1773936652898,-477601.72774685,0.00015,3]
[408606864,1773936652908,-2063.07913842,0.00015,2]
[408606865,1773936652917,-3182.24180802,0.00015,14]
[408606866,1773936652927,-8031.63478619,0.00015,2]
[408606867,1773936652936,-2023.41355816,0.00015,2]
[408606868,1773936652946,-242.88509587,0.00015,2]
[408606869,1773936652956,-5319.8753405,0.00015,3]
[408606870,1773936652965,-250.0,0.00015,2]
[408606871,1773936652975,-345.0,0.00015,2]
[408606872,1773936652985,-794.0,0.00015,2]
[408606873,1773936652994,-2000.0,0.00015033,2]
[408606874,1773936653003,-161.0,0.0001504,2]
[408606875,1773936653013,-179.0,0.0001504,2]
[408606876,1773936653023,-1567.0,0.0001504,2]
[408606877,1773936653033,-2402.0,0.0001504,2]
[408606878,1773936653043,-1567.0,0.0001504,2]
[408606879,1773936653055,-2402.0,0.0001504,2]
[408606880,1773936653065,-2500.0,0.00015068,2]
[408606881,1773936653075,-2500.0,0.00015068,2]
[408606882,1773936653085,-469.0,0.00015068,2]
[408606883,1773936653096,-2500.0,0.00015068,2]
[408606884,1773936653106,-2500.0,0.00015068,2]
[408606885,1773936653116,-2500.0,0.00015068,2]
[408606886,1773936653126,-2500.0,0.00015068,2]
[408606887,1773936653135,-2500.0,0.00015068,2]
[408606888,1773936653146,-2500.0,0.00015068,2]
[408606889,1773936653156,-2500.0,0.00015068,2]
[408606890,1773936653166,-2500.0,0.00015068,2]
[408606891,1773936653177,-2500.0,0.00015068,2]
[408606892,1773936653187,-2500.0,0.00015068,2]
[408606893,1773936653198,-2500.0,0.00015068,2]
[408606894,1773936653208,-2500.0,0.00015068,2]
[408606895,1773936653218,-2500.0,0.00015068,2]
[408606896,1773936653229,-2500.0,0.00015068,2]
[408606897,1773936653238,-2500.0,0.00015068,2]
[408606898,1773936653249,-2500.0,0.00015068,2]
[408606899,1773936653258,-2500.0,0.00015068,2]
[408606900,1773936653268,-2500.0,0.00015068,2]
[408606901,1773936653280,-2500.0,0.00015068,2]
[408606902,1773936653290,-2500.0,0.00015068,2]
[408606903,1773936653300,-2500.0,0.00015068,2]
[408606904,1773936653311,-2500.0,0.00015068,2]
[408606905,1773936653321,-2500.0,0.00015068,2]
[408606906,1773936653331,-2635.17071886,0.00015068,2]
[408606907,1773936653340,-874.16,0.00015068,2]
[408606908,1773936653350,-4421.69,0.00015068,2]
[408606909,1773936653364,-166.1762201,0.00015073,2]
[408606910,1773936653373,-500.0,0.0001509,5]
[408606911,1773936653382,-500.0,0.0001509,2]
[408606912,1773936653391,-500.0,0.0001509,5]
[408606913,1773936653402,-500.0,0.0001509,2]
[408606914,1773936653410,-500.0,0.0001509,2]
[408606915,1773936653420,-500.0,0.0001509,5]
[408606916,1773936653430,-154.62815875,0.0001509,2]
[408606917,1773936653439,-500.0,0.00015099,2]
[408606918,1773936653448,-624.58041295,0.00015099,2]
[408606919,1773936653457,-500.0,0.00015099,2]
[408606920,1773936653466,-262.12386182,0.00015099,2]
[408606921,1773936653475,-529954.46,0.000151,2]
[408606922,1773936653485,-1716.38,0.000151,2]
[408606923,1773936653493,-1539.48,0.000151,2]
[408606924,1773936653503,-1014.53,0.000151,2]
[408606925,1773936653512,-927.9,0.000151,2]
[408606926,1773936653522,-659.82,0.000151,2]
[408606927,1773936653533,-2000.0,0.00015133,2]
[408606928,1773936653543,-274.49268659,0.00015192,2]
[408606929,1773936653553,-2000.0,0.00015233,2]
[408606930,1773936653564,-1517.64,0.000153,2]
[408606931,1773936653574,-500.0,0.0001533,2]
[408606932,1773936653584,-500.0,0.0001533,2]
[408606933,1773936653593,-500.0,0.0001533,2]
[408606934,1773936653602,-500.0,0.0001533,2]
[408606935,1773936653612,-500.0,0.0001533,5]
[408606936,1773936653622,-331.13185319,0.0001533,2]
[408606937,1773936653632,-500.0,0.0001533,2]
[408606938,1773936653641,-500.0,0.0001533,2]
[408606939,1773936653651,-500.0,0.0001533,2]
[408606940,1773936653661,-500.0,0.0001533,2]
[408606941,1773936653671,-500.0,0.0001533,2]
[408606942,1773936653682,-500.0,0.0001533,2]
[408606943,1773936653691,-500.0,0.0001533,5]
[408606944,1773936653702,-2000.0,0.00015333,2]
[408606945,1773936653712,-2000.0,0.00015342,2]
[408606946,1773936653721,-2000.0,0.00015342,2]
[408606947,1773936653732,-455.72571989,0.00015342,2]
[408606948,1773936653741,-2000.0,0.00015342,2]
[408606949,1773936653751,-1499.94158246,0.00015342,2]
[408606950,1773936653761,-2000.0,0.00015342,2]
[408606951,1773936653771,-1182.21618208,0.00015342,2]
[408606952,1773936653780,-232.68961964,0.00015342,2]
[408606953,1773936653792,-1497.8737548,0.00015342,2]
[408606954,1773936653801,-2000.0,0.00015342,2]
[408606955,1773936653811,-2000.0,0.00015342,2]
[408606956,1773936653822,-2000.0,0.00015342,2]
[408606957,1773936653832,-931.42701484,0.00015342,2]
[408606958,1773936653843,-2000.0,0.00015342,2]
[408606959,1773936653852,-2000.0,0.00015342,2]
[408606960,1773936653861,-2000.0,0.00015342,2]
[408606961,1773936653871,-1676.1614452,0.00015342,2]
[408606962,1773936653881,-1416.46067137,0.00015342,2]
[408606963,1773936653892,-2000.0,0.00015342,2]
[408606964,1773936653903,-547.28628106,0.00015342,2]
[408606965,1773936653914,-253.74817323,0.00015342,2]
[408606966,1773936653924,-161.0,0.0001536,2]
[408606967,1773936653934,-1567.0,0.0001536,2]
[408606968,1773936653943,-1567.0,0.0001536,2]
[408606969,1773936653952,-2402.0,0.0001536,2]
[408606970,1773936653962,-511.52743554,0.000154,2]
[408606971,1773936653973,-2225.0,0.00015412,2]
[408606972,1773936653983,-2000.0,0.00015433,2]
[408606973,1773936653996,-155.0,0.00015489,2]
[408606974,1773936654005,-1228.88155727,0.000155,2]
[408606975,1773936654015,-157.0,0.000155,3]
[408606976,1773936654025,-1957.58,0.00015507,2]
[408606977,1773936654036,-2000.0,0.00015533,2]
[408606978,1773936654046,-507.0,0.00015593,3]
[408606979,1773936654056,-400.0,0.00015616,2]
[408606980,1773936654066,-436.211883,0.00015616,2]
[408606981,1773936654076,-3000.0,0.00015616,2]
[408606982,1773936654086,-1400.0,0.00015616,2]
[408606983,1773936654096,-2000.0,0.00015633,2]
[408606984,1773936654106,-2402.0,0.0001568,2]
[408606985,1773936654117,-161.0,0.0001568,2]
[408606986,1773936654127,-2402.0,0.0001568,2]
[408606987,1773936654136,-2000.0,0.00015733,2]
[408606988,1773936654145,-4421.69,0.00015753,2]
[408606989,1773936654155,-223.020043,0.00015787,7]
[408606990,1773936654166,-2254.45345603,0.00015807,2]
[408606991,1773936654178,-2000.0,0.00015833,2]
[408606992,1773936654189,-1346.65249792,0.0001584,10]
[408606993,1773936654198,-1475.25,0.00015862,2]
[408606994,1773936654209,-2400.0,0.0001589,2]
[408606995,1773936654219,-250.0,0.0001589,2]
[408606996,1773936654229,-2000.0,0.0001589,2]
[408606997,1773936654239,-461.15092032,0.0001589,2]
[408606998,1773936654249,-2601.20422733,0.0001589,2]
[408606999,1773936654258,-2500.0,0.0001589,2]
[408607000,1773936654268,-2500.0,0.0001589,2]
[408607001,1773936654277,-2500.0,0.0001589,2]
[408607002,1773936654288,-2500.0,0.0001589,2]
[408607003,1773936654300,-2500.0,0.0001589,2]
[408607004,1773936654311,-2500.0,0.0001589,2]
[408607005,1773936654321,-2500.0,0.0001589,2]
[408607006,1773936654331,-534.68838991,0.0001589,2]
[408607007,1773936654342,-2500.0,0.0001589,2]
[408607008,1773936654352,-1957.58,0.00015895,2]
[408607009,1773936654365,-879.11493942,0.000159,2]
[408607010,1773936654376,-626.2358179,0.000159,2]
[408607011,1773936654387,-600.0,0.000159,5]
[408607012,1773936654399,-496.10992565,0.000159,2]
[408607013,1773936654412,-496.10992551,0.000159,2]
[408607014,1773936654422,-496.10992551,0.000159,2]
[408607015,1773936654435,-496.10992551,0.000159,2]
[408607016,1773936654447,-496.10992551,0.000159,2]
[408607017,1773936654456,-496.10992551,0.000159,2]
[408607018,1773936654466,-496.10992551,0.000159,2]
[408607019,1773936654476,-496.10992551,0.000159,2]
[408607020,1773936654485,-496.10992551,0.000159,2]
[408607021,1773936654495,-496.10992551,0.000159,2]
[408607022,1773936654505,-496.10992551,0.000159,2]
[408607023,1773936654515,-496.10992551,0.000159,2]
[408607024,1773936654525,-496.10992551,0.000159,2]
[408607025,1773936654535,-496.10992551,0.000159,2]
[408607026,1773936654544,-496.10992551,0.000159,2]
[408607027,1773936654554,-496.10992551,0.000159,2]
[408607028,1773936654564,-496.10992551,0.000159,2]
[408607029,1773936654573,-496.10992551,0.000159,2]
[408607030,1773936654583,-496.10992551,0.000159,2]
[408607031,1773936654592,-496.10992551,0.000159,2]
[408607032,1773936654603,-2000.0,0.00015933,2]
[408607033,1773936654613,-238.24,0.00015954,2]
[408607034,1773936654622,-700.0,0.0001597,2]
[408607035,1773936654632,-700.0,0.0001597,2]
[408607036,1773936654643,-700.0,0.0001597,2]
[408607037,1773936654653,-700.0,0.0001597,2]
[408607038,1773936654663,-700.0,0.0001597,2]
[408607039,1773936654672,-1344597.58065428,0.00016,2]
[408607040,1773936654682,-1435517.26520199,0.00016,2]
[408607041,1773936654693,-403.38068468,0.00016,2]
[408607042,1773936654705,-199495.85334723,0.00016,2]
[408607043,1773936654716,-3194.87069235,0.00016,2]
[408607044,1773936654727,-160.0,0.00016,3]
[408607045,1773936654739,-10000.0,0.00016,7]
[408607046,1773936654749,-204.0,0.00016,10]
[408607047,1773936654758,-25000.0,0.00016,3]
[408607048,1773936654768,-150.0,0.00016,2]
[408607049,1773936654778,-150.0,0.00016,2]
[408607050,1773936654788,-150.0,0.00016,2]
[408607051,1773936654797,-150.0,0.00016,2]
[408607052,1773936654809,-150.0,0.00016,2]
[408607053,1773936654820,-150.0,0.00016,2]
[408607054,1773936654830,-150.0,0.00016,2]
[408607055,1773936654840,-150.0,0.00016,2]
[408607056,1773936654851,-150.0,0.00016,2]
[408607057,1773936654860,-150.0,0.00016,2]
[408607058,1773936654870,-499.99,0.00016006,2]
[408607059,1773936654880,-283.32,0.00016006,2]
[408607060,1773936654889,-2000.0,0.00016033,2]
[408607061,1773936654899,-188.47930705,0.00016042,5]
[408607062,1773936654908,-238.24,0.00016046,2]
[408607063,1773936654919,-150.0,0.00016056,2]
[408607064,1773936654928,-150.0,0.00016056,2]
[408607065,1773936654938,-150.0,0.00016056,2]
[408607066,1773936654948,-150.0,0.00016056,2]
[408607067,1773936654957,-150.0,0.00016056,2]
[408607068,1773936654967,-185.0,0.00016056,2]
[408607069,1773936654976,-1261.0,0.00016087,2]
[408607070,1773936654985,-414.0,0.00016087,2]
[408607071,1773936654994,-3758.0,0.00016087,2]
[408607072,1773936655004,-8030.45,0.00016116,2]
[408607073,1773936655013,-2000.0,0.00016133,2]
[408607074,1773936655022,-150.0,0.00016169,2]
[408607075,1773936655032,-150.0,0.00016169,7]
[408607076,1773936655042,-2577.606,0.00016231,2]
[408607077,1773936655051,-620.0,0.00016231,2]
[408607078,1773936655061,-1344.0,0.00016231,2]
[408607079,1773936655070,-2000.0,0.00016233,2]
[408607080,1773936655080,-150.0,0.00016252,2]
[408607081,1773936655090,-150.0,0.00016252,2]
[408607082,1773936655100,-268.0,0.00016252,2]
[408607083,1773936655110,-1957.58,0.00016282,2]
[408607084,1773936655119,-164.0,0.000163,2]
[408607085,1773936655130,-659.82,0.000163,2]
[408607086,1773936655141,-173.114027,0.00016315,7]
[408607087,1773936655151,-304.444258,0.00016315,7]
[408607088,1773936655160,-349.323471,0.00016316,7]
[408607089,1773936655169,-337.452102,0.00016316,7]
[408607090,1773936655179,-16248.69989976,0.0001633,30]
[408607091,1773936655189,-500.0,0.0001633,2]
[408607092,1773936655199,-3256.0,0.00016335,2]
[408607093,1773936655212,-150.0,0.0001642,2]
[408607094,1773936655221,-150.0,0.0001642,2]
[408607095,1773936655232,-150.0,0.0001642,2]
[408607096,1773936655242,-150.0,0.0001642,2]
[408607097,1773936655252,-150.0,0.0001642,2]
[408607098,1773936655263,-150.0,0.0001642,2]
[408607099,1773936655273,-165.0,0.0001642,2]
[408607100,1773936655282,-874.16,0.00016438,2]
[408607101,1773936655291,-4421.69,0.00016438,2]
[408607102,1773936655301,-152.0,0.00016438,2]
[408607103,1773936655311,-151.0,0.00016438,2]
[408607104,1773936655320,-151.0,0.00016438,2]
[408607105,1773936655330,-151.0,0.00016438,2]
[408607106,1773936655340,-151.0,0.00016438,2]
[408607107,1773936655352,-151.0,0.00016438,2]
[408607108,1773936655365,-151.0,0.00016438,2]
[408607109,1773936655375,-151.0,0.00016438,2]
[408607110,1773936655386,-151.0,0.00016438,2]
[408607111,1773936655397,-151.0,0.00016438,2]
[408607112,1773936655408,-151.0,0.00016438,2]
[408607113,1773936655418,-151.0,0.00016438,2]
[408607114,1773936655428,-151.0,0.00016438,2]
[408607115,1773936655441,-151.0,0.00016438,2]
[408607116,1773936655451,-151.0,0.00016438,2]
[408607117,1773936655460,-151.0,0.00016438,2]
[408607118,1773936655470,-151.0,0.00016438,2]
[408607119,1773936655480,-151.0,0.00016438,2]
[408607120,1773936655489,-151.0,0.00016438,2]
[408607121,1773936655500,-151.0,0.00016438,2]
[408607122,1773936655509,-151.0,0.00016438,2]
[408607123,1773936655519,-151.0,0.00016438,2]
[408607124,1773936655528,-151.0,0.00016438,2]
[408607125,1773936655538,-151.0,0.00016438,2]
[408607126,1773936655549,-151.0,0.00016438,2]
[408607127,1773936655559,-151.0,0.00016438,2]
[408607128,1773936655570,-163.284762,0.00016438,2]
[408607129,1773936655582,-152.0,0.00016438,2]
[408607130,1773936655593,-152.0,0.00016438,2]
[408607131,1773936655603,-152.0,0.00016438,2]
[408607132,1773936655612,-171.8462681,0.00016438,2]
[408607133,1773936655622,-3000.0,0.00016438,2]
[408607134,1773936655632,-656.4847291,0.00016438,2]
[408607135,1773936655642,-300.0,0.00016499,2]
[408607136,1773936655652,-300.0,0.00016499,2]
[408607137,1773936655662,-529954.46,0.000165,2]
[408607138,1773936655672,-1716.38,0.000165,2]
[408607139,1773936655682,-1539.48,0.000165,2]
[408607140,1773936655692,-1014.53,0.000165,2]
[408607141,1773936655701,-1000.0,0.000165,2]
[408607142,1773936655711,-1000.0,0.000165,2]
[408607143,1773936655720,-1000.0,0.000165,2]
[408607144,1773936655730,-1000.0,0.000165,2]
[408607145,1773936655739,-1000.0,0.000165,2]
[408607146,1773936655749,-1000.0,0.000165,2]
[408607147,1773936655759,-266.452,0.000165,2]
[408607148,1773936655769,-157.0,0.00016583,3]
[408607149,1773936655780,-927.9,0.000166,2]
[408607150,1773936655789,-1957.58,0.0001667,2]
[408607151,1773936655799,-507.0,0.00016723,4]
[408607152,1773936655808,-182.50884706,0.0001673,5]
[408607153,1773936655817,-190.479714,0.00016792,7]
[408607154,1773936655827,-281.13,0.00016823,2]
[408607155,1773936655837,-210.09,0.00016823,2]
[408607156,1773936655846,-238.51,0.00016823,2]
[408607157,1773936655856,-196.77,0.00016823,2]
[408607158,1773936655865,-3000.0,0.00016986,7]
[408607159,1773936655875,-1000.0,0.00016986,2]
[408607160,1773936655885,-27810.2233699,0.00017,2]
[408607161,1773936656094,-160.0,0.00017,7]
[408607162,1773936656103,-199.5,0.00017,2]
[408607163,1773936656112,-300.0,0.00017,2]
[408607164,1773936656122,-1957.58,0.00017058,2]
[408607165,1773936656132,-180.0,0.00017095,2]
[408607166,1773936656142,-2624.3859133,0.000171,2]
[408607167,1773936656153,-5426.0,0.00017215,2]
[408607168,1773936656162,-173.1841697,0.00017337,2]
[408607169,1773936656172,-154.42032794,0.00017358,2]
[408607170,1773936656184,-3208.81589793,0.0001739,2]
[408607171,1773936656194,-659.82,0.000176,2]
[408607172,1773936656205,-157.0,0.00017667,3]
[408607173,1773936656214,-1316.833736,0.00017789,7]
[408607174,1773936656223,-1293.012179,0.00017789,7]
[408607175,1773936656232,-161.138092,0.00017789,7]
[408607176,1773936656241,-455.494969,0.00017789,7]
[408607177,1773936656252,-359.136473,0.00017789,7]
[408607178,1773936656263,-352.639685,0.00017789,7]
[408607179,1773936656272,-800.0,0.00017808,2]
[408607180,1773936656282,-507.0,0.00017853,5]
[408607181,1773936656293,-5800.0,0.00017992,2]
[408607182,1773936656304,-17586.15760234,0.00018,2]
[408607183,1773936656314,-10000.0,0.00018,7]
[408607184,1773936656324,-5800.0,0.00018,2]
[408607185,1773936656334,-1475.25,0.00018024,2]
[408607186,1773936656344,-3000.0,0.00018082,7]
[408607187,1773936656354,-300.0,0.00018199,2]
[408607188,1773936656368,-300.0,0.00018199,2]
[408607189,1773936656378,-168.0,0.000182,2]
[408607190,1773936656388,-4524.45362364,0.000182,2]
[408607191,1773936657138,-984.49388968,0.00010087,2]
[408607192,1773936657149,-5021.50611032,0.00010087,2]
[408607193,1773936657161,-6006.0,0.00013087,2]
[408607194,1773936657171,-1529.9867092,0.00016087,2]
[408607195,1773936657210,-2864.84108647,0.00016087,2]
[408607196,1773936657490,-4812.95969076,0.00011019,2]
[408607197,1773936657501,-151.0,0.00013699,2]
[408607198,1773936657511,-151.0,0.00013699,2]
[408607199,1773936657522,-151.0,0.00013699,2]
[408607200,1773936657532,-151.0,0.00013699,2]
[408607201,1773936657542,-151.0,0.00013699,2]
[408607202,1773936657552,-151.0,0.00013699,2]
[408607203,1773936657562,-151.0,0.00013699,2]
[408607204,1773936657575,-1611.17220433,0.00016087,2]
[408607205,1773936657585,-5410.8255836,0.000182,2]
[408607206,1773936657604,-800.135,0.000182,2]
[408607207,1773936657622,-128000.40021812,0.000182,2]
[408607208,1773936658269,-46249.356553,0.000182,2]
[408607209,1773936658330,-151.0,0.00013699,2]
[408607210,1773936658339,-693.22000008,0.000182,2]
[408607211,1773936664498,10000.01,6.971e-05,2]
[408607212,1773936664533,10000.01,6.971e-05,2]
[408607213,1773936664569,10000.01,6.971e-05,2]
[408607214,1773936664605,10000.01,6.971e-05,2]
[408607215,1773936664641,10000.01,6.971e-05,2]
[408607216,1773936664675,10000.01,6.971e-05,2]
[408607217,1773936664707,10000.01,6.971e-05,2]
[408607218,1773936664742,10000.01,6.971e-05,2]
[408607219,1773936664777,10000.01,6.971e-05,2]
[408607220,1773936664818,10000.01,6.971e-05,2]
[408607221,1773936691488,4843.59,6.832e-05,2]
[408607222,1773936691616,173.642,6.832e-05,2]
[408607223,1773936744447,-150.0,6.97e-05,2]
[408607224,1773936755161,9700.01,6.961e-05,2]
[408607225,1773936755188,10000.01,6.961e-05,2]
[408607226,1773936755212,10000.01,6.961e-05,2]
[408607227,1773936755236,10000.01,6.961e-05,2]
[408607228,1773936901250,300.0,6.96e-05,2]
[408607229,1773936902637,1200.0,6.96e-05,2]
[408607230,1773936905132,158.0,6.961e-05,3]
[408607231,1773937201181,1200.0,6.96e-05,2]
[408607232,1773937205169,210.0,6.961e-05,2]
[408607233,1773937205655,158.0,6.961e-05,3]
[408607234,1773937291547,4214.701,6.832e-05,2]
[408607235,1773937291700,177.554,6.832e-05,2]
[408607236,1773937304095,200.0,6.9e-05,2]
[408607237,1773937365870,10000.01,6.961e-05,2]
[408607238,1773937365921,10000.01,6.961e-05,2]
[408607239,1773937365971,10000.01,6.961e-05,2]
[408607240,1773937366018,10000.01,6.961e-05,2]
[408607241,1773937366067,300.0,6.961e-05,2]
[408607242,1773937511220,158.0,6.961e-05,3]
[408607244,1773937613551,-250.0,6.965e-05,2]
[408607245,1773937613572,-303.96232386,6.968e-05,2]
[408607246,1773937613601,-150.0,6.969e-05,2]
[408607247,1773937613629,-1200.0,6.969e-05,2]
[408607248,1773937613652,-731.74,6.97e-05,2]
[408607249,1773937613674,-500.0,6.97e-05,2]
[408607250,1773937613698,-500.0,6.97e-05,2]
[408607251,1773937613720,-500.0,6.97e-05,2]
[408607252,1773937613741,-500.0,6.97e-05,2]
[408607253,1773937613762,-213.40918076,6.97e-05,2]
[408607254,1773937613782,-583.79170956,6.97e-05,2]
[408607255,1773937613802,-500.0,6.97e-05,2]
[408607256,1773937613822,-223.19132808,6.97e-05,2]
[408607257,1773937613854,-500.0,6.97e-05,2]
[408607258,1773937613875,-500.0,6.97e-05,2]
[408607259,1773937613896,-500.0,6.97e-05,2]
[408607260,1773937613928,-500.0,6.97e-05,2]
[408607261,1773937613949,-477.83048143,6.97e-05,2]
[408607262,1773937613982,-500.0,6.97e-05,2]
[408607263,1773937614014,-500.0,6.97e-05,2]
[408607264,1773937614044,-500.0,6.97e-05,2]
[408607265,1773937614075,-500.0,6.97e-05,2]
[408607266,1773937614103,-500.0,6.97e-05,2]
[408607267,1773937614136,-500.0,6.97e-05,2]
[408607268,1773937614163,-500.0,6.97e-05,2]
[408607269,1773937614192,-500.0,6.97e-05,2]
[408607270,1773937614223,-500.0,6.97e-05,2]
[408607271,1773937614253,-500.0,6.97e-05,2]
[408607272,1773937614285,-500.0,6.97e-05,2]
[408607273,1773937614314,-500.0,6.97e-05,2]
[408607274,1773937614342,-500.0,6.97e-05,2]
[408607275,1773937614371,-500.0,6.97e-05,2]
[408607276,1773937614400,-500.0,6.97e-05,2]
[408607277,1773937614432,-500.0,6.97e-05,2]
[408607278,1773937614462,-458.83189315,6.97e-05,2]
[408607279,1773937614493,-500.0,6.97e-05,2]
[408607280,1773937614523,-500.0,6.97e-05,2]
[408607281,1773937614553,-500.0,6.97e-05,2]
[408607282,1773937614583,-500.0,6.97e-05,2]
[408607283,1773937614617,-500.0,6.97e-05,2]
[408607284,1773937614653,-500.0,6.97e-05,2]
[408607285,1773937614686,-500.0,6.97e-05,2]
[408607286,1773937614716,-500.0,6.97e-05,2]
[408607287,1773937614746,-500.0,6.97e-05,2]
[408607288,1773937614778,-500.0,6.97e-05,2]
[408607289,1773937614808,-500.0,6.97e-05,2]
[408607290,1773937614839,-500.0,6.97e-05,2]
[408607291,1773937614870,-500.0,6.97e-05,2]
[408607292,1773937614900,-500.0,6.97e-05,2]
[408607293,1773937614931,-500.0,6.97e-05,2]
[408607294,1773937614962,-500.0,6.97e-05,2]
[408607295,1773937614995,-500.0,6.97e-05,2]
[408607296,1773937615024,-500.0,6.97e-05,2]
[408607297,1773937615056,-500.0,6.97e-05,2]
[408607298,1773937615085,-295.88318931,6.97e-05,2]
[408607299,1773937615114,-500.0,6.97e-05,2]
[408607300,1773937615143,-500.0,6.97e-05,2]
[408607301,1773937615172,-500.0,6.97e-05,2]
[408607302,1773937615202,-500.0,6.97e-05,2]
[408607303,1773937615233,-500.0,6.97e-05,2]
[408607304,1773937615264,-500.0,6.97e-05,2]
[408607305,1773937615296,-500.0,6.97e-05,2]
[408607306,1773937615327,-500.0,6.97e-05,2]
[408607307,1773937615358,-500.0,6.97e-05,2]
[408607308,1773937615388,-500.0,6.97e-05,2]
[408607309,1773937615417,-500.0,6.97e-05,2]
[408607310,1773937615445,-500.0,6.97e-05,2]
[408607311,1773937615474,-500.0,6.97e-05,2]
[408607312,1773937615502,-500.0,6.97e-05,2]
[408607313,1773937615527,-515991.88097614,6.971e-05,2]
[408607314,1773937615634,-4864.30767614,6.971e-05,2]
[408607315,1773937615799,-271.39464772,6.971e-05,2]
[408607316,1773937626273,157.0,6.971e-05,3]
[408607317,1773937630504,-731.74,7.244e-05,2]
[408607320,1773937767331,10000.01,6.871e-05,2]
[408607321,1773937767410,10000.01,6.871e-05,2]
[408607322,1773937767482,10000.01,6.871e-05,2]
[408607323,1773937767574,10000.01,6.871e-05,2]
[408607324,1773937767649,10000.01,6.871e-05,2]
[408607325,1773937767743,10000.01,6.871e-05,2]
[408607326,1773937767838,10000.01,6.871e-05,2]
[408607327,1773937767908,10000.01,6.871e-05,2]
[408607328,1773937767984,10000.01,6.871e-05,2]
[408607329,1773937768057,10000.01,6.871e-05,2]
[408607330,1773937772214,-388000.0,6.871e-05,2]
[408607331,1773937778795,-7475.2286088,6.871e-05,2]
[408607332,1773937778937,-10000.01,6.871e-05,2]
[408607333,1773937779112,-10000.01,6.871e-05,2]
[408607334,1773937779300,-10000.01,6.871e-05,2]
[408607335,1773937779477,-10000.01,6.871e-05,2]
[408607336,1773937779778,-10000.01,6.871e-05,2]
[408607337,1773937780307,-10000.01,6.871e-05,2]
[408607338,1773937780488,-10000.01,6.871e-05,2]
[408607339,1773937780664,-10000.01,6.871e-05,2]
[408607340,1773937780895,-10000.01,6.871e-05,2]
[408607341,1773937781144,-10000.01,6.871e-05,2]
[408607342,1773937781310,-10000.01,6.871e-05,2]
[408607343,1773937781478,-10000.01,6.871e-05,2]
[408607344,1773937781655,-10000.01,6.871e-05,2]
[408607345,1773937781845,-10000.01,6.871e-05,2]
[408607346,1773937782059,-10000.01,6.871e-05,2]
[408607347,1773937804179,-1200.0,6.87e-05,2]
[408607348,1773937804201,-150.0,6.87e-05,2]
[408607349,1773937804222,-300.0,6.87e-05,2]
[408607350,1773937804244,-300.0,6.87e-05,2]
[408607351,1773937804265,-253.43471266,6.871e-05,2]
[408607352,1773937804285,-209.0,6.871e-05,2]
[408607353,1773937804308,-669587.56528734,6.871e-05,2]
[408607354,1773937804744,216.0,6.871e-05,3]
[408607355,1773937804984,216.0,7.667e-05,3]
[408607356,1773937805287,216.0,8.464e-05,3]
[408607366,1773937831903,-1000.0,6.871e-05,2]
[408607367,1773937831976,-2319.81522465,6.871e-05,2]